{"text_format":"1","workbook":"xlsx","n_sheets":2,"sheets":["enter","net product"],"not_rendered":{"charts":0,"images":0,"macros":1,"external_links":0,"defined_names":0,"comments":0,"pivot_tables":0},"unopened":[],"bounds":{"document_bytes":16777216,"sheet_cells":100000,"rows_first":2000,"rows_last":500,"rows_between":2000,"halvings":0,"cell_chars":16384,"cell_head_chars":4096},"cells_cut":0,"cells_raw":0,"read":"whole","date_system":"1900"}

{"sheet":"enter","index":0,"n_rows":173,"n_cols":6,"rows_kept":173,"cut":false,"hidden":false,"merged":[]}
["التخطيط والمتابعة "]
["   التاريخ ","2021-10-05",null,null,{"$f":"MONTH(B2)","v":10}]
["بعده"]
["   كود الشركة",1,"اسم الشركة","اكاي",{"$f":"DAY(B$2)","v":5},{"$f":"MONTH(enter!$B$2)&enter!D4&enter!D7&enter!D17","v":"10اكايمروحة استاند عادة 18\"دريم"}]
["   كود الخط",1,"اسم المشرف","بنداري"]
["  القوة ",20]
["   كود المنتج",1,"اسم المنتج","مروحة استاند عادة 18\""]
["   كود الماركة",1,"اسم الماركة ","دريم"]
["   المعدل",7]
["   كمية الإنتاج المحقق",600,"الزمن",6,"زمن التوقف","ملاحظات "]
["   كود التوقف",1,"سبب التوقف","تغيير منتج",1]
["بعده"]
["   كود الشركة",1,"اسم الشركة","اكاي",{"$f":"DAY(B$2)","v":5},{"$f":"MONTH(enter!$B$2)&enter!D13&enter!D16&enter!D26","v":"10اكايمروحة حائط عادة 18\"دريم"}]
["   كود الخط",2,"اسم المشرف","محمود"]
["  القوة ",20]
["   كود المنتج",1,"اسم المنتج","مروحة حائط عادة 18\""]
["   كود الماركة",1,"اسم الماركة ","دريم"]
["   المعدل",7]
["   كمية الإنتاج المحقق",600,"الزمن",5,"زمن التوقف","ملاحظات "]
["   كود التوقف",1,"سبب التوقف","تغيير منتج",2]
["بعده"]
["   كود الشركة",1,"اسم الشركة","اكاي",{"$f":"DAY(B$2)","v":5},{"$f":"MONTH(enter!$B$2)&enter!D22&enter!D25&enter!D35","v":"10اكايمبرد"}]
["   كود الخط",3,"اسم المشرف","محمود"]
["  القوة ",20]
["   كود المنتج",1,"اسم المنتج","مبرد"]
["   كود الماركة",1,"اسم الماركة ","دريم"]
["   المعدل",7]
["   كمية الإنتاج المحقق",150,"الزمن",7,"زمن التوقف","ملاحظات "]
["   كود التوقف",1,"سبب التوقف",null,0]
["بعده"]
["   كود الشركة",null,"اسم الشركة",null,{"$f":"DAY(B$2)","v":5},{"$f":"MONTH(enter!$B$2)&enter!D31&enter!D34&enter!D44","v":"10"}]
["   كود الخط",null,"اسم المشرف"]
["  القوة "]
["   كود المنتج",null,"اسم المنتج"]
["   كود الماركة",null,"اسم الماركة "]
["   المعدل"]
["   كمية الإنتاج المحقق",null,"الزمن",null,"زمن التوقف","ملاحظات "]
["   كود التوقف",null,"سبب التوقف"]
["بعده"]
["   كود الشركة",null,"اسم الشركة",null,{"$f":"DAY(B$2)","v":5},{"$f":"MONTH(enter!$B$2)&enter!D40&enter!D43&enter!D53","v":"10"}]
["   كود الخط",null,"اسم المشرف"]
["  القوة "]
["   كود المنتج",null,"اسم المنتج"]
["   كود الماركة",null,"اسم الماركة "]
["   المعدل"]
["   كمية الإنتاج المحقق",null,"الزمن",null,"زمن التوقف","ملاحظات "]
["   كود التوقف",null,"سبب التوقف"]
["بعده"]
["   كود الشركة",null,"اسم الشركة",null,{"$f":"DAY(B$2)","v":5},{"$f":"MONTH(enter!$B$2)&enter!D49&enter!D52&enter!D62","v":"10"}]
["   كود الخط",null,"اسم المشرف"]
["  القوة "]
["   كود المنتج",null,"اسم المنتج"]
["   كود الماركة",null,"اسم الماركة "]
["   المعدل"]
["   كمية الإنتاج المحقق",null,"الزمن",null,"زمن التوقف","ملاحظات "]
["   كود التوقف",null,"سبب التوقف"]
["بعده"]
["   كود الشركة",null,"اسم الشركة",null,{"$f":"DAY(B$2)","v":5},{"$f":"MONTH(enter!$B$2)&enter!D58&enter!D61&enter!D71","v":"10"}]
["   كود الخط",null,"اسم المشرف"]
["  القوة "]
["   كود المنتج",null,"اسم المنتج"]
["   كود الماركة",null,"اسم الماركة "]
["   المعدل"]
["   كمية الإنتاج المحقق",null,"الزمن",null,"زمن التوقف","ملاحظات "]
["   كود التوقف",null,"سبب التوقف"]
["بعده"]
["   كود الشركة",null,"اسم الشركة",null,{"$f":"DAY(B$2)","v":5},{"$f":"MONTH(enter!$B$2)&enter!D67&enter!D70&enter!D80","v":"10"}]
["   كود الخط",null,"اسم المشرف"]
["  القوة "]
["   كود المنتج",null,"اسم المنتج"]
["   كود الماركة",null,"اسم الماركة "]
["   المعدل"]
["   كمية الإنتاج المحقق",null,"الزمن",null,"زمن التوقف","ملاحظات "]
["   كود التوقف",null,"سبب التوقف"]
["بعده"]
["   كود الشركة",null,"اسم الشركة",null,{"$f":"DAY(B$2)","v":5},{"$f":"MONTH(enter!$B$2)&enter!D76&enter!D79&enter!D89","v":"10"}]
["   كود الخط",null,"اسم المشرف"]
["  القوة "]
["   كود المنتج",null,"اسم المنتج"]
["   كود الماركة",null,"اسم الماركة "]
["   المعدل"]
["   كمية الإنتاج المحقق",null,"الزمن",null,"زمن التوقف","ملاحظات "]
["   كود التوقف",null,"سبب التوقف"]
["بعده"]
["   كود الشركة",null,"اسم الشركة",null,{"$f":"DAY(B$2)","v":5},{"$f":"MONTH(enter!$B$2)&enter!D85&enter!D88&enter!D98","v":"10"}]
["   كود الخط",null,"اسم المشرف"]
["  القوة "]
["   كود المنتج",null,"اسم المنتج"]
["   كود الماركة",null,"اسم الماركة "]
["   المعدل"]
["   كمية الإنتاج المحقق",null,"الزمن",null,"زمن التوقف","ملاحظات "]
["   كود التوقف",null,"سبب التوقف"]
["بعده"]
["   كود الشركة",null,"اسم الشركة",null,{"$f":"DAY(B$2)","v":5},{"$f":"MONTH(enter!$B$2)&enter!D94&enter!D97&enter!D107","v":"10"}]
["   كود الخط",null,"اسم المشرف"]
["  القوة "]
["   كود المنتج",null,"اسم المنتج"]
["   كود الماركة",null,"اسم الماركة "]
["   المعدل"]
["   كمية الإنتاج المحقق",null,"الزمن",null,"زمن التوقف","ملاحظات "]
["   كود التوقف",null,"سبب التوقف"]
["بعده"]
["   كود الشركة",null,"اسم الشركة",null,{"$f":"DAY(B$2)","v":5},{"$f":"MONTH(enter!$B$2)&enter!D103&enter!D106&enter!D116","v":"10"}]
["   كود الخط",null,"اسم المشرف"]
["  القوة "]
["   كود المنتج",null,"اسم المنتج"]
["   كود الماركة",null,"اسم الماركة "]
["   المعدل"]
["   كمية الإنتاج المحقق",null,"الزمن",null,"زمن التوقف","ملاحظات "]
["   كود التوقف",null,"سبب التوقف"]
["بعده"]
["   كود الشركة",null,"اسم الشركة",null,{"$f":"DAY(B$2)","v":5},{"$f":"MONTH(enter!$B$2)&enter!D112&enter!D115&enter!D125","v":"10"}]
["   كود الخط",null,"اسم المشرف"]
["  القوة "]
["   كود المنتج",null,"اسم المنتج"]
["   كود الماركة",null,"اسم الماركة "]
["   المعدل"]
["   كمية الإنتاج المحقق",null,"الزمن",null,"زمن التوقف","ملاحظات "]
["   كود التوقف",null,"سبب التوقف"]
["بعده"]
["   كود الشركة",null,"اسم الشركة",null,{"$f":"DAY(B$2)","v":5},{"$f":"MONTH(enter!$B$2)&enter!D121&enter!D124&enter!D134","v":"10"}]
["   كود الخط",null,"اسم المشرف"]
["  القوة "]
["   كود المنتج",null,"اسم المنتج"]
["   كود الماركة",null,"اسم الماركة "]
["   المعدل"]
["   كمية الإنتاج المحقق",null,"الزمن",null,"زمن التوقف","ملاحظات "]
["   كود التوقف",null,"سبب التوقف"]
["بعده"]
["   كود الشركة",null,"اسم الشركة",null,{"$f":"DAY(B$2)","v":5},{"$f":"MONTH(enter!$B$2)&enter!D130&enter!D133&enter!D143","v":"10"}]
["   كود الخط",null,"اسم المشرف"]
["  القوة "]
["   كود المنتج",null,"اسم المنتج"]
["   كود الماركة",null,"اسم الماركة "]
["   المعدل"]
["   كمية الإنتاج المحقق",null,"الزمن",null,"زمن التوقف","ملاحظات "]
["   كود التوقف",null,"سبب التوقف"]
["بعده"]
["   كود الشركة",null,"اسم الشركة",null,{"$f":"DAY(B$2)","v":5},{"$f":"MONTH(enter!$B$2)&enter!D139&enter!D142&enter!D152","v":"10"}]
["   كود الخط",null,"اسم المشرف"]
["  القوة "]
["   كود المنتج",null,"اسم المنتج"]
["   كود الماركة",null,"اسم الماركة "]
["   المعدل"]
["   كمية الإنتاج المحقق",null,"الزمن",null,"زمن التوقف","ملاحظات "]
["   كود التوقف",null,"سبب التوقف"]
["بعده"]
["   كود الشركة",null,"اسم الشركة",null,{"$f":"DAY(B$2)","v":5},{"$f":"MONTH(enter!$B$2)&enter!D148&enter!D151&enter!D161","v":"10"}]
["   كود الخط",null,"اسم المشرف"]
["  القوة "]
["   كود المنتج",null,"اسم المنتج"]
["   كود الماركة",null,"اسم الماركة "]
["   المعدل"]
["   كمية الإنتاج المحقق",null,"الزمن",null,"زمن التوقف","ملاحظات "]
["   كود التوقف",null,"سبب التوقف"]
["بعده"]
["   كود الشركة",null,"اسم الشركة",null,{"$f":"DAY(B$2)","v":5},{"$f":"MONTH(enter!$B$2)&enter!D157&enter!D160&enter!D170","v":"10"}]
["   كود الخط",null,"اسم المشرف"]
["  القوة "]
["   كود المنتج",null,"اسم المنتج"]
["   كود الماركة",null,"اسم الماركة "]
["   المعدل"]
["   كمية الإنتاج المحقق",null,"الزمن",null,"زمن التوقف","ملاحظات "]
["   كود التوقف",null,"سبب التوقف"]
["بعده"]
["   كود الشركة",null,"اسم الشركة",null,{"$f":"DAY(B$2)","v":5},{"$f":"MONTH(enter!$B$2)&enter!D166&enter!D169&enter!D179","v":"10"}]
["   كود الخط",null,"اسم المشرف"]
["  القوة "]
["   كود المنتج",null,"اسم المنتج"]
["   كود الماركة",null,"اسم الماركة "]
["   المعدل"]
["   كمية الإنتاج المحقق",null,"الزمن",null,"زمن التوقف","ملاحظات "]
["   كود التوقف",null,"سبب التوقف"]

{"sheet":"net product","index":1,"n_rows":4,"n_cols":38,"rows_kept":4,"cut":false,"hidden":false,"merged":[]}
[null,null,null,null,null,null,{"$f":"COLUMN()","v":7},null,null,null,null,null,null,null,null,null,null,null,null,null,null,null,null,null,null,null,null,null,null,null,null,null,null,null,null,null,{"$f":"COLUMN()","v":37}]
[]
[]
["الشهر","الشركة","كود المنتج","اسم المنتج","الماركة","الإنتاج ",1,2,3,4,5,6,7,8,9,10,11,12,13,14,15,16,17,18,19,20,21,22,23,24,25,26,27,28,29,30,31,"all"]